Cogmind - Beta 15 @@@ ROGUE MODE // 2025.06.20 @ 16:48:33 Player: Envian Result: Self-destructed Performance ------------- Evolutions (2) 1000 Regions Visited (5) 1000 Robots Destroyed (29) 145 Value Destroyed (501) 501 Prototype IDs (0) 0 Alien Tech Used (0) 0 Bonus (0) 0 TOTAL SCORE: 2646 Bonus ------- None Cogmind --------- Core Integrity 550/550 Matter 300/300 Energy 100/100 System Corruption 0% Temperature Cool (0) Movement Core (200) Ox3 Location -8/Materials Parts ------- > --- POWER (1) -------- (None) > --- PROPULSION (2) --- (None) > --- UTILITY (6) ------ Improved Heat Sink Medium Storage Unit > --- WEAPON (2) ------- (None) > --- INVENTORY (10) --- Aluminum Leg Aluminum Leg Aluminum Leg Structural Scanner Sensor Array Signal Interpreter Medium Laser Mining Laser Mining Claw Peak State ------------ > --- POWER ------------ Ion Engine > --- PROPULSION ------- Aluminum Leg Improved Aluminum Leg > --- UTILITY ---------- Improved Heat Sink Medium Storage Unit > --- WEAPON ----------- Medium Laser Ripper > --- INVENTORY -------- Light Ion Engine Aluminum Leg Aluminum Leg Aluminum Leg Structural Scanner Sensor Array Signal Interpreter Medium Laser Mining Laser Mining Claw [Rating: 14] Favorites ----------- Power Ion Engine Engine Ion Engine Propulsion Aluminum Leg Leg Aluminum Leg Utility Medium Storage Unit Device Improved Heat Sink Storage Medium Storage Unit Weapon Medium Laser Energy Gun Medium Laser Slashing Weapon Ripper Build | -11 -10 -10 -10 -9 -8 ------- Run | Yrd Mat Min Exi Min Mat Slots Evolved 4 | . . . . . 4 Power . | . . . . . . Propulsion . | . . . . . . Utility 4 | . . . . . 4 Weapon . | . . . . . . Parts Attached 16 | 6 6 1 . 3 . Power 2 | 1 . . . 1 . Engine 2 | 1 . . . 1 . Core . | . . . . . . Reactor . | . . . . . . Propulsion 6 | 2 2 . . 2 . Treads . | . . . . . . Leg 6 | 2 2 . . 2 . Wheel . | . . . . . . Hover . | . . . . . . Flight . | . . . . . . Utility 3 | 1 2 . . . . Device 1 | . 1 . . . . Storage 2 | 1 1 . . . . Processor . | . . . . . . Hackware . | . . . . . . Protection . | . . . . . . Artifact . | . . . . . . Weapon 5 | 2 2 1 . . . Energy Gun 3 | 2 1 . . . . Energy Cannon . | . . . . . . Ballistic Gun . | . . . . . . Ballistic Cannon . | . . . . . . Launcher . | . . . . . . Special Weapon . | . . . . . . Impact Weapon . | . . . . . . Slashing Weapon 2 | . 1 1 . . . Piercing Weapon . | . . . . . . Special Melee Weapon . | . . . . . . Unidentified Prototypes . | . . . . . . Parts Lost 6 | . 1 . . 5 . Power 2 | . . . . 2 . Propulsion 1 | . . . . 1 . Utility . | . . . . . . Weapon 3 | . 1 . . 2 . Highest Loss Streak 4 | . 1 . . 4 . To Critical Strikes . | . . . . . . Average Backups 7 | . 5 9 10 9 . Power . | . 1 1 1 . . Propulsion 1 | . . 3 3 3 . Utility 2 | . 1 3 3 3 . Weapon 2 | . 2 2 3 3 . Tool/Special . | . . . . . . Unused Backups 4 | . . . . . 4 Power . | . . . . . . Propulsion . | . . . . . . Utility 3 | . . . . . 3 Weapon 1 | . . . . . 1 Tool/Special . | . . . . . . Average Slot Usage (%) 98 | . 96 100 100 98 . Engine 13 | . 14 14 14 13 . Leg 27 | . 28 28 28 27 . Device 12 | . 10 14 14 14 . Storage 14 | . 14 14 14 14 . Energy Gun 21 | . 27 22 14 13 . Slashing Weapon 6 | . . 5 14 13 . Peak Build Rating 14 | 6 10 13 13 14 . Average Rating 10 | 4 9 10 13 13 . On Entrance 7 | . 6 9 13 13 4 Naked Turns . | . . . . . . Heaviest Build 24 | 14 24 21 21 21 . Greatest Support 23 | 20 20 20 20 23 . Greatest Overweight (x) 1 | 1 1 1 1 1 . Average Overweight (x) . | . . . 1 . . Largest Inventory Capacity 10 | 8 10 10 10 10 . Average Capacity 9 | 7 9 10 10 10 . Most Carried 10 | 1 9 10 10 10 . Average Carried 7 | . 5 9 10 9 . Final Capacity 10 | 8 10 10 10 10 10 Final Carried 10 | 1 9 10 10 9 9 Class Distribution -------------------- 100% | Mutant Dominant Class ---------------- Mutant | -10/Materials Mutant | -10/Mines Mutant | -10/Exiles Mutant | -9/Mines Mutant | -8/Materials Resources | -11 -10 -10 -10 -9 -8 ----------- Run | Yrd Mat Min Exi Min Mat Matter Collected 380 | 199 141 . . 40 . Remotely . | . . . . . . Salvage Created 892 | . 823 . . 69 . Parts 63 | . 61 . . 2 . Haulers Intercepted 2 | . 2 . . . . Recyclers Shooed . | . . . . . . Parts Field Recycled . | . . . . . . Retrieved Matter . | . . . . . . Parts Self-Destructed . | . . . . . . Prevented . | . . . . . . Kills | -11 -10 -10 -10 -9 -8 ------- Run | Yrd Mat Min Exi Min Mat Combat Hostiles Destroyed 19 | . 18 . . 1 . Guns 18 | . 17 . . 1 . Classes Destroyed 10 | . 9 . . 1 . Worker 1 | . 1 . . . . Builder 2 | . 2 . . . . Tunneler 1 | . 1 . . . . Hauler 2 | . 2 . . . . Recycler 2 | . 1 . . 1 . Operator 1 | . 1 . . . . Watcher 2 | . 2 . . . . Swarmer 9 | . 9 . . . . Grunt 9 | . 9 . . . . Assembled 1 | . . . . 1 . Best Kill Streak 8 | . 8 . . 1 . Combat Bots Only 4 | . 4 . . 1 . Max Kills in Single Turn 2 | . 2 . . 1 . Gunslinging 1 | . 1 . . . . Exploded . | . . . . . . Melee . | . . . . . . Uniques/NPCs Destroyed . | . . . . . . Combat | -11 -10 -10 -10 -9 -8 -------- Run | Yrd Mat Min Exi Min Mat Hostile Shots Fired 76 | . 56 . . 20 . Missed 16 | . 14 . . 2 . Hits 60 | . 42 . . 18 . Melee 10 | . . . . 10 . Projectile 50 | . 42 . . 8 . Critical Strikes 2 | . 1 . . 1 . Damage Taken 862 | . 448 . . 414 . Core 142 | . 34 . . 108 . Absorbed by Shields . | . . . . . . Regen/Repaired (Parts) 14 | . 14 . . . . Core Remaining (%) 71 | 100 . . . 43 . Volleys Fired 73 | . 64 . . 9 . Largest 2 | . 2 . . 1 . Hottest 115 | . 115 . . 50 . Shots Fired 120 | . 111 . . 9 . Gun 120 | . 111 . . 9 . Cannon . | . . . . . . Launcher . | . . . . . . Special . | . . . . . . Kinetic . | . . . . . . Thermal 120 | . 111 . . 9 . Explosive . | . . . . . . Electromagnetic . | . . . . . . Robot Hit Streak 12 | . 12 . . 4 . Robot Miss Streak 6 | . 6 . . 3 . Penetration Max . | . . . . . . Secondary Targets 1 | . 1 . . . . Max Gunslinging Chain 1 | . 1 . . . . Shots Hit Robots 68 | . 61 . . 7 . Core Hits 39 | . 35 . . 4 . Critical Kills . | . . . . . . Critical Parts Destroyed . | . . . . . . Critical Strikes 7 | . 7 . . . . Burn 7 | . 7 . . . . Melee Attacks 4 | . 1 . . 3 . Impact . | . . . . . . Slashing 4 | . 1 . . 3 . Piercing . | . . . . . . Sneak Attacks 1 | . . . . 1 . Combat Hostiles . | . . . . . . Follow-up Attacks . | . . . . . . Damage Inflicted 1098 | . 912 . . 186 . Guns 966 | . 904 . . 62 . Cannons . | . . . . . . Explosions . | . . . . . . Melee 119 | . . . . 119 . Ramming 13 | . 8 . . 5 . Kinetic . | . . . . . . Thermal 966 | . 904 . . 62 . Explosive . | . . . . . . Electromagnetic . | . . . . . . Impact . | . . . . . . Slashing 119 | . . . . 119 . Piercing . | . . . . . . Highest Corruption 8 | . . . . 8 . Average Corruption 3 | . . . . 3 . Corruption Purged . | . . . . . . Corruption Blocked . | . . . . . . Overload Shots . | . . . . . . Overflow Damage 15 | . . . . 15 . Projectiles . | . . . . . . Explosions . | . . . . . . Melee 15 | . . . . 15 . Knockbacks . | . . . . . . Impact . | . . . . . . Kinetic . | . . . . . . Secondary . | . . . . . . Self-Inflicted Damage 1 | . . . . 1 . Shots . | . . . . . . Rammed 1 | . . . . 1 . Targets Rammed 6 | . 2 . . 4 . Kicked 5 | . 2 . . 3 . Crushed . | . . . . . . Highest Temperature 463 | . 463 . . . . Average Temperature 73 | . 73 . . . . Received Heat Transfer 144 | . 144 . . . . Effects 1 | . 1 . . . . Shutdowns 1 | . 1 . . . . Siege Activations . | . . . . . . Martial Activations . | . . . . . . Shielding Activations . | . . . . . . Robots Disrupted . | . . . . . . Combat Hostiles . | . . . . . . Robots Corrupted . | . . . . . . Combat Hostiles . | . . . . . . Parts Fried . | . . . . . . Impact Corruptions . | . . . . . . Robots Melted 2 | . 2 . . . . Combat Hostiles 1 | . 1 . . . . Parts Melted 5 | . 5 . . . . Heat Transferred 3145 | . 2960 . . 185 . Parts Sabotaged . | . . . . . . Parts Stolen . | . . . . . . Parts Stripped . | . . . . . . Power Chain Reactions . | . . . . . . Alert | -11 -10 -10 -10 -9 -8 ------- Run | Yrd Mat Min Exi Min Mat Maximum Alert Level 1 | . 1 . . . . Low Security (%) 95 | 100 93 100 . 100 . Level 1 4 | . 6 . . . . Level 2 . | . . . . . . Level 3 . | . . . . . . Level 4 . | . . . . . . Level 5 . | . . . . . . High Security . | . . . . . . Max Security . | . . . . . . Peak Influence 221 | . 221 38 . 5 . Initial 31 | . . 31 . . . Average 67 | . 96 24 . . . Influence Increases 599 | . 587 7 . 5 . Destroy 0b10 Robot/C 360 | . 360 . . . . Destroy 0b10 Robot/NC 55 | . 50 . . 5 . Destroy Leader 78 | . 78 . . . . Successful Hack 44 | . 37 7 . . . Disable Machine 15 | . 15 . . . . Destroy Structure 2 | . 2 . . . . Lose Combat Pursuer 45 | . 45 . . . . Influence Decreases 599 | . 507 79 8 5 . Entered New Map 57 | . . 49 8 . . Time Decay 522 | . 487 30 . 5 . Lost Part 10 | . 10 . . . . Lost Ally 10 | . 10 . . . . Squads Dispatched 3 | . 3 . . . . Investigation 2 | . 2 . . . . Extermination . | . . . . . . Reinforcement 1 | . 1 . . . . Assault . | . . . . . . Garrison . | . . . . . . Intercept . | . . . . . . Searches Triggered . | . . . . . . Construction Impeded . | . . . . . . Haulers Reinforced . | . . . . . . Active Scanning Responses . | . . . . . . Cargo Convoy Interrupts . | . . . . . . Stealth | -11 -10 -10 -10 -9 -8 --------- Run | Yrd Mat Min Exi Min Mat Distress Signals 1 | . 1 . . . . Communications Jammed . | . . . . . . Distress Signals . | . . . . . . Times Spotted 35 | . 30 . . 5 . Peak Tracking Total 7 | . 7 . . 5 . Tactical Retreats 2 | . 1 . . 1 . Traps | -11 -10 -10 -10 -9 -8 ------- Run | Yrd Mat Min Exi Min Mat Traps Triggered 2 | . 2 . . . . Indirectly . | . . . . . . Trap Hack Attempts . | . . . . . . Triggered . | . . . . . . Disarmed . | . . . . . . Reprogrammed . | . . . . . . Reused . | . . . . . . Traps Extracted . | . . . . . . Installed . | . . . . . . Triggered . | . . . . . . Machines | -11 -10 -10 -10 -9 -8 ---------- Run | Yrd Mat Min Exi Min Mat Machines Disabled 2 | . 2 . . . . Max in Single Turn 1 | . 1 . . . . Machines Repaired . | . . . . . . Machines Dismantled . | . . . . . . Machines Sabotaged . | . . . . . . Overloaded Fab Kills . | . . . . . . Hacking | -11 -10 -10 -10 -9 -8 --------- Run | Yrd Mat Min Exi Min Mat Machines Accessed 10 | . 7 1 2 . . Terminals 7 | . 6 1 . . . Fabricators . | . . . . . . Repair Stations 1 | . 1 . . . . Recycling Units . | . . . . . . Scanalyzers . | . . . . . . Garrison Access . | . . . . . . Total Hacks 16 | . 13 1 2 . . Successful 13 | . 10 1 2 . . Failed 3 | . 3 . . . . Catastrophic . | . . . . . . Database Lockouts . | . . . . . . Manual 15 | . 13 1 1 . . Terminals 13 | . 12 1 . . . Fabricators . | . . . . . . Repair Stations 1 | . 1 . . . . Recycling Units . | . . . . . . Scanalyzers . | . . . . . . Garrison Access . | . . . . . . Terminal Hacks 5 | . 2 1 2 . . Record 2 | . . . 2 . . Locate Traps 2 | . 2 . . . . Patrol Status 1 | . . 1 . . . Fabricator Hacks . | . . . . . . Repair Station Hacks . | . . . . . . Recycling Unit Hacks . | . . . . . . Scanalyzer . | . . . . . . Garrison Access Hacks . | . . . . . . Unauthorized Hacks 8 | . 8 . . . . Terminals 7 | . 7 . . . . Assimilate 1 | . 1 . . . . Botnet 5 | . 5 . . . . Operators 1 | . 1 . . . . Fabricators . | . . . . . . Repair Stations 1 | . 1 . . . . Patch 1 | . 1 . . . . Recycling Units . | . . . . . . Scanalyzers . | . . . . . . Garrison Access . | . . . . . . Data Cores Recovered . | . . . . . . Used . | . . . . . . Hacking Detections 3 | . 2 1 . . . Full Trace Events 1 | . 1 . . . . Feedback Events . | . . . . . . Feedback Blocked . | . . . . . . Robot Schematics Acquired . | . . . . . . Robots Built . | . . . . . . Authchips . | . . . . . . Time . | . . . . . . Total Robot Build Rating . | . . . . . . Part Schematics Acquired . | . . . . . . Parts Built . | . . . . . . Authchips . | . . . . . . Time . | . . . . . . Total Part Build Rating . | . . . . . . Parts Repaired . | . . . . . . Time . | . . . . . . Parts Recycled . | . . . . . . Recycled Matter . | . . . . . . Retrieved Matter . | . . . . . . Retrieved Components . | . . . . . . Parts Scanalyzed . | . . . . . . Part Schematics Acquired . | . . . . . . Parts Damaged . | . . . . . . Bothacking | -11 -10 -10 -10 -9 -8 ------------ Run | Yrd Mat Min Exi Min Mat Used RIF Installer . | . . . . . . Robots Hacked . | . . . . . . Non-combat . | . . . . . . Combat . | . . . . . . Robot Hacks Applied . | . . . . . . Relay Couplers Released . | . . . . . . Fabnet Peak Effective % . | . . . . . . Robots Rewired . | . . . . . . Allies Hacked . | . . . . . . Hacks Repelled . | . . . . . . Allies | -11 -10 -10 -10 -9 -8 -------- Run | Yrd Mat Min Exi Min Mat Total Allies 1 | . 1 . . . . Largest Group 1 | . 1 . . . . Highest-Rated Group 10 | . 10 . . . . Highest-Rated Ally 10 | . 10 . . . . Total Orders . | . . . . . . Ally Attacks . | . . . . . . Total Damage . | . . . . . . Kills . | . . . . . . Allies Corrupted . | . . . . . . Allies Melted . | . . . . . . Intel | -11 -10 -10 -10 -9 -8 ------- Run | Yrd Mat Min Exi Min Mat Active Infowar (turns) . | . . . . . . Robot Analysis Total . | . . . . . . Derelict Logs Recovered 2 | . . . . 2 . Drone Launches . | . . . . . . Drone Recoveries . | . . . . . . Exploration | -11 -10 -10 -10 -9 -8 ------------- Run | Yrd Mat Min Exi Min Mat Turns Passed 3150 | 54 1672 69 734 621 . Spaces Moved 1761 | 40 882 47 387 405 . Core 6 | 6 . . . . . Treads . | . . . . . . Legs 1755 | 34 882 47 387 405 . Wheels . | . . . . . . Hover . | . . . . . . Flight . | . . . . . . Fastest Speed 50 | 50 120 120 190 120 . Average Speed 163 | 113 164 143 190 142 . Slowest Speed 190 | 190 190 190 190 190 . Overloaded Moves . | . . . . . . Propulsion Burnouts . | . . . . . . Robots Hopped . | . . . . . . Potential Cave-ins . | . . . . . . Cave-ins Triggered . | . . . . . . Exploration Rate (%) 45 | 3 94 17 90 67 2 Regions Visited 5 Branch Regions 3 Pre-discovered Areas 1 | . . . . 1 . Known Exits Taken 1 | . . . . 1 . Unknown Exits Taken 4 | 1 1 1 1 . . Scrap Searched 1 | . . . . 1 . Spaces Dug . | . . . . . . Terrain Destroyed . | . . . . . . Melee . | . . . . . . Projectile . | . . . . . . AOE . | . . . . . . Terrain Rammed . | . . . . . . Walls Destroyed . | . . . . . . Machines Disabled . | . . . . . . Actions | -11 -10 -10 -10 -9 -8 --------- Run | Yrd Mat Min Exi Min Mat Total 1893 | 46 983 48 386 430 . Wait 25 | . 19 . . 6 . Move 1757 | 39 881 46 386 405 . Hop . | . . . . . . Pick Up 9 | 1 7 1 . . . Fast Attach 7 | 6 1 . . . . Attach 3 | . 2 . . 1 . Detach . | . . . . . . Swap 8 | . 5 1 . 2 . Drop 2 | . 1 . . 1 . Fire 73 | . 64 . . 9 . Melee 4 | . 1 . . 3 . Ram . | . . . . . . Kick 5 | . 2 . . 3 . Crush . | . . . . . . Escape Stasis . | . . . . . . Rewire . | . . . . . . Trap . | . . . . . . Miscellaneous . | . . . . . . Route ------- -11/Scrapyard -10/Materials (discovered 4 exits: [*Mat x3] / *Min) -10/Mines -10/Exiles (discovered 2 exits: [*Min x2]) -9/Mines (discovered 2 exits: *Mat x2) -8/Materials History --------- Turn | Location | Event 9 | -11/Scrapyard | Discovered new exit (range 16) 55 | -11/Scrapyard | Entered Materials 193 | -10/Materials | Discovered new exit (range 5) 325 | -10/Materials | Build established: Mutant 903 | -10/Materials | Discovered new exit (range 6) 1230 | -10/Materials | Discovered new exit (range 7) 1541 | -10/Materials | Discovered new exit (range 4) 1727 | -10/Materials | Entered Mines 1762 | -10/Mines | A weapon hastily lodged in a ceiling crevice suddenly fell to the ground 1773 | -10/Mines | Met a Derelict bent on vengeance 1788 | -10/Mines | Deemed a non-threat by the Exiles lab entrance 1788 | -10/Mines | Discovered new exit (range 5) 1796 | -10/Mines | Entered Exiles 1796 | -10/Exiles | Found Exiles lab abandoned 1825 | -10/Exiles | Discovered new exit (range 15) 2513 | -10/Exiles | Discovered new exit (range 11) 2530 | -10/Exiles | Entered Mines 2836 | -9/Mines | Discovered new exit (range 13) 2837 | -9/Mines | Learned location of Storage (-8) 2903 | -9/Mines | Identified exit to Materials 2940 | -9/Mines | Assembled infested the area 2945 | -9/Mines | Assisted by a Guerilla fighting off Assembled 3151 | -9/Mines | Core integrity fell below 50% 3151 | -9/Mines | Entered Materials 3151 | -8/Materials | Evolved 4 slots: Utility x4 3151 | -8/Materials | Self-destructed Last Messages --------------- 03140_ U-05 Engineer destroyed. 03140_ K-01 Serf collects debris. 03141_ Aluminum Leg severed. 03144_ K-01 Serf collects debris. 03144_ Ripper destroyed. 03144_ System corrupted by crushing effect (+3). 03145_ Med. Laser destroyed. 03145_ Kicked as-03898. 03146_ K-01 Serf collects debris. 03147_ Kicked as-03898. 03149_ U-05 Engineer suffers critical hit (Destroy). 03149_ Kicked as-03898. 03149_ K-01 Serf collects debris. 03150_ Lgt. Ion Engine destroyed. 03150_ Imp. Aluminum Leg destroyed. 03150_ System corrupted by crushing effect (+5). 03151_ Slammed into as-03898. PARAMETERS=UTILITY+4 LOCATION=MATERIALS GOAL=ESCAPE Map ----- +----------------------------------------------------+ | ?????????????????????????????????????? | | ?????????????????????????????????????? | | ?????????????????????????????????????? | | ?????????????????????????????????????? | | ?????????????????????????????????????? | | ?????????????????????????????????????? | | ?????????????????????????????????????? | | ?????????????????????????????????????? | | ?????????????????????????????????????? | | ?????????????????????????????????????? | | ?????????????????????????????????????? | | ?????????????????????????????????????? | | ?????????????????????????????????????? | | ?????????????????????????????????????? | | ?????????????????????????????????????? | | ?????????????????????????????????????? | | ?????????????????????????????????????? | | ?????????????????????????????????????? | | ?????????????????????????????????????? | | ????????????????????########?????????? | | ????????????????????#]][[]]#?????????? | | ????????????????????#]][[]]#?????????? | | ????????????????????# #?????????? | | ?????????????###+#### #?????????? | | ?????????? #?????????? | | ?????????? @ #?????????? | | ?????????? #?????????? | | ?????????????###+###########?????????? | | ?????????????????????????????????????? | | ?????????????????????????????????????? | | ?????????????????????????????????????? | | ?????????????????????????????????????? | | ?????????????????????????????????????? | | ?????????????????????????????????????? | | ?????????????????????????????????????? | | ?????????????????????????????????????? | | ?????????????????????????????????????? | | ?????????????????????????????????????? | | ?????????????????????????????????????? | | | | | | | | | | | | | | | | | | | | | | | +----------------------------------------------------+ Best States ------------- Heat Dissipation 39 Energy Generation 10 Energy Capacity 250 Matter Stores 300 Matter Capacity 300 Sight Range 16 Terrain Scan Density 10 Evasion (%) 55 Item Schematics ----------------- None Robot Schematics ------------------ None Fabricated ------------ Nothing Repaired ---------- Nothing Alien Tech Used ----------------- None Achievements -------------- None Challenges ------------ None Game ------ Seed SlugFissionWeb Manual? 0 Play Time 00:16:14 Cumulative 49.3 hours Start 2025.06.20 @ 16:24:28 End 2025.06.20 @ 16:48:33 Sessions 3 Manual Loads 0 Difficulty Rogue Special Mode None Game No. 60 Rogue 60 Adventurer 0 Explorer 0 Win Type - Total 1 Types 1/0/0/0/0/0/0/0/0/0 Lore% 36 Gallery% 32 Achievement% 36 Wizard Run 0 Options --------- Layout 0 ASCII 0 Keyboard 0 Movement Numpad Keybinds 0 Fullscreen 1 Font 24/Smallcaps Map View 76x50 Zoom Use 0% Tactical HUD 1 Map Filters NONE Filters NONE Steam 1 RUN: 4c472b8a-eb13-424c-942e-2e6d6bf8d8c2